{"text_format":"1","workbook":"xlsx","n_sheets":2,"sheets":["Годовая сводная","Sheet-to-picture"],"not_rendered":{"charts":0,"images":0,"macros":1,"external_links":0,"defined_names":1,"comments":0,"pivot_tables":0},"unopened":[],"bounds":{"document_bytes":16777216,"sheet_cells":100000,"rows_first":2000,"rows_last":500,"rows_between":2000,"halvings":0,"cell_chars":16384,"cell_head_chars":4096},"cells_cut":0,"cells_raw":0,"read":"whole","date_system":"1900"}

{"sheet":"Годовая сводная","index":0,"n_rows":22,"n_cols":7,"rows_kept":22,"cut":false,"hidden":false,"merged":[[3,6,15,14],[2,0,2,3],[0,0,0,3]]}
[]
[{"$f":"TODAY()","v":"2020-10-21"}]
[]
[null,null,null,"Дата","Роспись",null,"Уважаемые форумчане! Подскажите, пожалуйста! Есть ли возможность вставить в макрос свой шрифт. Дело в том, что админ не разрешает ставить определенные (а именно письменные шрифты). Очень часто сталкиваюсь с тем, что нужно поставить в ячейке роспись и число своей рукой. Мы пишем число, ставим роспись, сканируем и скан вставляем в ячейки Ексель  и отправляем. Росписи я отсканировала, вставила в ячейки (они постоянные), а вот дата....Должна быть каждый день разная. Сканировать и в каждую ячейку ставить дату - мартышкин труд.Да, я понимаю, что шрифт будет только на моем компьютере. Но может есть какая-то возможность вставить шрифт свой в макрос, а при сохранении документа Екесель (без макросов) в ячейках дата и роспись сохранялась бы как картинка"]
[null,null,null,{"$f":"A$2","v":"2020-10-21"}]
[null,null,null,"2020-10-21"]
[null,null,null,"2020-10-21"]
[null,null,null,"2020-10-21"]
[null,null,null,"2020-10-21"]
[null,null,null,"2020-10-21"]
[null,null,null,"2020-10-21"]
[null,null,null,"2020-10-21"]
[null,null,null,"2020-10-21"]
[null,null,null,"2020-10-21"]
[null,null,null,"2020-10-21"]
[null,null,null,"2020-10-21"]
[null,null,null,"2020-10-21"]
[null,null,null,"2020-10-21"]
[null,null,null,"2020-10-21"]
["А.А. Шаврин",null,null,"2020-10-21"]
["В.И. Алмакаев",null,null,"2020-10-21"]
["Д.А. Глазовский",null,null,"2020-10-21"]

{"sheet":"Sheet-to-picture","index":1,"n_rows":29,"n_cols":9,"rows_kept":29,"cut":false,"hidden":false,"merged":[[0,0,0,3],[2,0,2,3],[27,3,27,9],[28,3,28,9]]}
[]
[{"$f":"TODAY()","v":"2020-10-21"},null,null,"ПРОЕКТ РЕШЕНИЯ"]
[]
[null,null,null,"Дата","Роспись",null,"2020-10-21"]
[null,null,null,{"$f":"A$2","v":"2020-10-21"},null,null,"2020-10-21"]
[null,null,null,"2020-10-21",null,null,"2020-10-21"]
[null,null,null,"2020-10-21",null,null,"2020-10-21"]
[null,null,null,"2020-10-21",null,null,"2020-10-21"]
[null,null,null,"2020-10-21",null,null,"2020-10-21",null,"ШАГ 1"]
[null,null,null,"2020-10-21",null,null,"2020-10-21"]
[null,null,null,"2020-10-21",null,null,"2020-10-21"]
[null,null,null,"2020-10-21",null,null,"2020-10-21"]
[null,null,null,"2020-10-21",null,null,"2020-10-21"]
[null,null,null,"2020-10-21",null,null,"2020-10-21"]
[null,null,null,"2020-10-21",null,null,"2020-10-21"]
[null,null,null,"2020-10-21",null,null,"2020-10-21"]
[null,null,null,"2020-10-21",null,null,"2020-10-21",null,"ШАГ 2"]
[null,null,null,"2020-10-21",null,null,"2020-10-21"]
[null,null,null,"2020-10-21",null,null,"2020-10-21"]
["А.А. Шаврин",null,null,"2020-10-21",null,null,"2020-10-23"]
["В.И. Алмакаев",null,null,"2020-10-21",null,null,"2020-10-24"]
["Д.А. Глазовский",null,null,"2020-10-21",null,null,"2020-10-25"]
[]
[null,null,null,"VERDANA",null,null,"Bradley Hand ITC"]
[]
[]
[]
[null,null,null,"ШАГ 1.  Нажимаем кнопку \"Изменить шрифт\". Ранее бывший шрифт \"Bradley Hand ITC\" заменяется в диапазоне D5:D19 на шрифт Verdana."]
[null,null,null,"ШАГ 2.  Выделяем диапазон A4:E19. Запускаем кнопку \"GET PICTURE\". В папку файла запишется выделенный диапазон в формате изображения GIF."]